bitfinex-derivatives/quotes_SOLF0:USTF0_20250714
["timestamp","ask_amount","ask_price","bid_price","bid_amount"]
[1752531849158,9.4792,162.34,162.33,3.41]
[1752531849657,9.4787,162.35,162.33,3.41]
[1752531850854,6.1589,162.34,162.33,3.41]
[1752531851756,9.4787,162.35,162.33,3.41]
[1752531852157,6.1589,162.34,162.33,3.41]
[1752531852357,9.4789,162.34,162.33,3.41]
[1752531852858,3.32,162.34,162.33,3.41]
[1752531853455,9.4787,162.35,162.33,3.41]
[1752531854859,9.4787,162.35,162.33,9.5693]
[1752531855057,9.4787,162.35,162.34,3.41]
[1752531855754,6.1587,162.35,162.34,3.41]
[1752531856253,9.4783,162.36,162.34,3.41]
[1752531857560,3.32,162.35,162.34,3.41]
[1752531858161,6.1583,162.36,162.34,3.41]
[1752531858361,9.4783,162.36,162.34,3.41]
[1752531861662,206.0,162.37,162.32,3.33898597]
[1752531861663,206.0,162.37,162.35,3.41]
[1752531862162,206.0,162.37,162.35,9.5683]
[1752531862363,206.0,162.37,162.36,3.41]
[1752531864366,212.1578,162.37,162.36,3.41]
[1752531864559,215.4778,162.37,162.36,3.41]
[1752531866868,3.32,162.37,162.36,3.41]
[1752531867069,9.4876,162.38,162.36,3.41]
[1752531868465,3.33,162.38,162.37,3.49]
[1752531869467,9.4871,162.39,162.37,3.49]
[1752531870571,206.0,162.4,162.38,6.1572]
[1752531870869,209.33,162.4,162.39,3.49]
[1752531871463,206.0,162.4,162.39,3.49]
[1752531871869,209.33,162.4,162.39,3.49]
[1752531872669,206.0,162.4,162.39,3.49]
[1752531874066,206.0,162.4,162.39,9.647]
[1752531875171,215.4867,162.4,162.31,12.3196]
[1752531875474,209.33,162.4,162.35,3.33898597]
[1752531875970,209.33,162.4,162.36,3.49]
[1752531876267,3.33,162.39,162.36,3.49]
[1752531876976,3.33,162.39,162.38,3.49]
[1752531877473,206.0,162.4,162.38,9.6474]
[1752531877673,209.33,162.4,162.39,3.49]
[1752531878673,215.4867,162.4,162.39,3.49]
[1752531880975,3.33,162.39,162.36,3.49]
[1752531881179,3.33,162.39,162.33,3.33898597]
[1752531881180,3.33,162.39,162.37,3.49]
[1752531881981,6.1576,162.38,162.36,3.49]
[1752531882274,3.33,162.37,162.36,3.49]
[1752531882677,9.4878,162.37,162.36,3.49]
[1752531883173,9.4878,162.37,162.29,177.14]
[1752531883372,3.33,162.38,162.31,3.33898597]
[1752531883575,3.33,162.36,162.33,3.49]
[1752531883770,6.1597,162.32,162.31,3.49]
[1752531883971,9.4897,162.32,162.31,3.49]
[1752531884177,3.33,162.32,162.31,3.49]
[1752531884371,177.14,162.36,162.31,3.49]
[1752531884680,3.33,162.35,162.31,3.49]
[1752531884879,3.33,162.35,162.32,3.49]
[1752531885469,6.1595,162.33,162.32,3.49]
[1752531885674,9.4895,162.33,162.32,3.49]
[1752531886575,6.1599,162.32,162.3,6.1602]
[1752531886771,3.33,162.32,162.31,3.49]
[1752531887674,9.4897,162.32,162.31,3.49]
[1752531888582,3.33,162.35,162.29,3.49]
[1752531889376,6.66898597,162.35,162.3,3.49]
[1752531889579,6.1594,162.33,162.3,3.49]
[1752531889879,3.33,162.32,162.3,3.49]
[1752531890179,3.32,162.33,162.31,3.49]
[1752531890682,9.4795,162.33,162.31,3.49]
[1752531890879,9.4795,162.33,162.32,3.49]
[1752531893781,3.32,162.33,162.32,3.49]
[1752531894878,9.489,162.34,162.32,3.49]
[1752531897684,6.1593,162.33,162.3,6.1603]
[1752531897884,9.4893,162.33,162.3,6.1603]
[1752531898281,9.4893,162.33,162.31,3.54]
[1752531898784,6.1591,162.34,162.31,6.1601]
[1752531898984,9.4891,162.34,162.32,3.54]
[1752531901781,6.1593,162.33,162.32,3.54]
[1752531901986,9.4893,162.33,162.32,3.54]
[1752531902188,6.1593,162.33,162.32,3.54]
[1752531902386,3.33,162.34,162.32,3.54]
[1752531902588,9.4891,162.34,162.32,3.54]
[1752531903087,6.1591,162.34,162.32,3.54]
[1752531903291,3.33,162.33,162.32,3.54]
[1752531903789,6.1591,162.34,162.32,3.54]
[1752531903988,9.4891,162.34,162.32,3.54]
[1752531904386,6.1593,162.33,162.32,3.54]
[1752531905691,9.4893,162.33,162.32,3.54]
[1752531906791,6.1602,162.31,162.24,180.47898597]
[1752531906991,6.1602,162.31,162.28,3.33898597]
[1752531907395,6.1602,162.31,162.29,3.54]
[1752531908695,209.33,162.34,162.29,3.54]
[1752531908987,9.4905,162.3,162.29,3.54]
[1752531911390,3.33,162.31,162.25,3.54]
[1752531912187,6.1612,162.29,162.25,6.1622]
[1752531912392,9.4912,162.29,162.26,3.54]
[1752531912599,6.1612,162.29,162.26,3.54]
[1752531912892,9.4912,162.29,162.27,3.54]
[1752531916398,9.4907,162.3,162.27,9.7013]
[1752531916604,9.4907,162.3,162.27,6.1613]
[1752531916802,9.4907,162.3,162.28,3.54]
[1752531918008,215.4902,162.31,162.29,3.54]
[1752531918300,212.1602,162.31,162.29,3.54]
[1752531918505,3.33,162.3,162.29,3.54]
[1752531919306,9.4905,162.3,162.29,3.54]
[1752531922808,3.33,162.3,162.26,9.50078597]
[1752531923009,3.33,162.3,162.27,3.54]
[1752531923411,3.33898597,162.3,162.25,3.54]
[1752531923612,3.33,162.29,162.25,3.54]
[1752531923912,9.492,162.26,162.23,6.1628]
[1752531924613,9.492,162.26,162.24,3.54]
[1752531925312,6.162,162.26,162.24,3.54]
[1752531925813,209.33,162.29,162.25,3.33898597]
[1752531926014,206.0,162.29,162.26,3.46]
[1752531927117,212.161,162.29,162.27,6.1615]
[1752531927314,212.161,162.29,162.28,3.46]
[1752531929113,206.0,162.29,162.28,9.6212]
[1752531930905,206.0,162.29,162.28,3.46]
[1752531931917,9.4905,162.3,162.28,3.46]
[1752531934419,6.1608,162.29,162.28,3.46]
[1752531936219,9.4906,162.3,162.28,3.46]
[1752531937223,9.4906,162.3,162.29,3.46]
[1752531940521,3.33,162.28,162.27,3.46]
[1752531943125,9.4912,162.28,162.27,3.46]
[1752531943327,3.33,162.3,162.24,3.46]
[1752531943527,3.33,162.3,162.24,9.6225]
[1752531943528,6.1618,162.27,162.24,9.6225]
[1752531943726,9.4918,162.27,162.25,3.46]
[1752531944228,6.1618,162.27,162.24,6.1625]
[1752531944421,9.4921,162.26,162.24,6.1625]
[1752531944930,9.4921,162.26,162.25,3.46]
[1752531945430,9.4926,162.25,162.24,3.46]
[1752531946926,9.4934,162.23,162.2,9.624]
[1752531947232,3.33,162.24,162.2,3.46]
[1752531947633,6.1639,162.21,162.2,3.46]
[1752531947832,9.4939,162.21,162.2,3.46]
[1752531948231,3.33,162.21,162.2,3.46]
[1752531948428,6.1637,162.22,162.2,3.46]
[1752531948627,3.33,162.22,162.2,3.46]
[1752531949028,3.33,162.22,162.21,3.46]
[1752531949531,9.4935,162.22,162.21,3.46]
[1752531951029,3.33,162.22,162.21,3.46]
[1752531951238,9.4932,162.23,162.21,3.46]
[1752531951629,206.0,162.26,162.21,6.80465538]
[1752531951830,3.33,162.25,162.22,3.46]
[1752531952133,3.33,162.25,162.22,9.6232]
[1752531952335,3.33,162.25,162.23,3.46]
[1752531953931,212.1623,162.26,162.23,3.46]
[1752531953932,212.1623,162.26,162.24,3.46]
[1752531954234,206.0,162.26,162.24,3.46]
[1752531954836,8.46767027,162.31,162.25,3.34465538]
[1752531955035,3.33,162.3,162.26,3.46]
[1752531955932,182.35767027,162.32,162.26,3.46]
[1752531956130,3.33,162.28,162.26,3.46]
[1752531956938,6.1615,162.28,162.26,3.46]
[1752531957935,5.13767027,162.32,162.28,3.46]
[1752531958141,3.33,162.3,162.28,3.46]
[1752531958342,6.1608,162.29,162.28,3.46]
[1752531958641,3.33,162.3,162.28,3.46]
[1752531958842,3.33,162.32,162.28,3.46]
[1752531959044,9.4903,162.31,162.28,3.46]
[1752531960148,6.1599,162.32,162.3,3.46]
[1752531960333,3.33,162.32,162.3,3.46]
[1752531960843,3.33,162.34,162.3,3.46]
[1752531961246,3.33,162.33,162.3,3.46]
[1752531961446,9.4895,162.33,162.3,3.46]
[1752531961949,6.1595,162.33,162.3,3.46]
[1752531963149,6.1595,162.33,162.3,6.1603]
[1752531963348,6.1595,162.33,162.31,3.46]
[1752531965443,6.159,162.34,162.31,12.96465538]
[1752531965749,206.0,162.36,162.32,3.46]
[1752531965948,3.33,162.34,162.32,3.46]
[1752531967149,6.1594,162.33,162.32,3.46]
[1752531970247,9.4894,162.33,162.32,3.46]
[1752531970455,209.33,162.35,162.29,3.34465538]
[1752531970752,3.33,162.34,162.29,3.34465538]
[1752531971049,6.16,162.32,162.3,3.46]
[1752531971950,6.1593,162.33,162.31,3.46]
[1752531972849,206.0,162.35,162.31,6.80465538]
[1752531973045,206.0,162.35,162.32,3.46]
[1752531973957,212.1588,162.35,162.34,3.46]
[1752531977756,206.0,162.35,162.34,3.46]
[1752531978857,206.0,162.35,162.34,9.6189]
[1752531982465,6.1578,162.37,162.35,3.46]
[1752531982764,3.33,162.36,162.32,6.1596]
[1752531982961,3.34465538,162.33,162.26,3.46]
[1752531983161,3.33,162.32,162.26,3.46]
[1752531983364,6.1602,162.31,162.28,6.161]
[1752531983663,9.4902,162.31,162.29,3.46]
[1752531985462,3.33,162.31,162.29,6.1607]
[1752531985665,9.4798,162.32,162.3,3.57]
[1752531985966,9.4798,162.32,162.31,3.57]
[1752531987172,9.4803,162.31,162.29,3.57]
[1752531988167,9.4803,162.31,162.28,6.1611]
[1752531988465,9.4803,162.31,162.3,3.57]
[1752531988957,9.4799,162.3,162.24,3.34465538]
[1752531989162,3.32,162.29,162.25,3.57]
[1752531989670,3.32,162.29,162.27,6.1608]
[1752531989866,3.32,162.29,162.28,3.57]
[1752531990066,9.4796,162.31,162.28,3.57]
[1752531990567,9.4796,162.31,162.28,9.7304]
[1752531990774,9.4796,162.31,162.3,3.57]
[1752531991370,9.4793,162.32,162.3,3.57]
[1752531992568,3.32,162.31,162.3,3.57]
[1752531993476,209.32,162.33,162.32,3.57]
[1752531996275,206.0,162.33,162.32,9.7291]
[1752531996472,3.32,162.37,162.32,6.91465538]
[1752531996672,3.32,162.37,162.34,9.50265538]
[1752531996873,9.4774,162.37,162.36,3.57]
[1752532001077,6.1574,162.37,162.36,3.57]
[1752532001277,209.32,162.38,162.34,3.34465538]
[1752532001485,209.32,162.38,162.37,3.57]
[1752532001873,215.4769,162.38,162.37,3.57]
[1752532002579,206.0,162.38,162.37,3.57]
[1752532003480,209.32,162.38,162.37,3.57]
[1752532003683,3.32,162.38,162.37,3.57]
[1752532003984,206.0,162.41,162.37,3.57]
[1752532003985,3.32,162.4,162.37,3.57]
[1752532004284,6.1566,162.39,162.37,3.57]
[1752532004584,3.32,162.4,162.38,3.57]
[1752532004982,9.4763,162.4,162.38,3.57]
[1752532006382,6.1563,162.4,162.38,3.57]
[1752532006689,215.4759,162.41,162.39,3.57]
[1752532006888,209.32,162.41,162.39,3.57]
[1752532007182,215.4757,162.41,162.4,3.57]
[1752532007590,3.32,162.4,162.32,3.34465538]
[1752532007886,3.32,162.4,162.39,3.57]
[1752532009088,9.4761,162.4,162.39,3.57]
[1752532010888,6.1561,162.4,162.39,3.57]
[1752532011087,9.4761,162.4,162.39,3.57]
[1752532011888,9.4765,162.39,162.37,3.57]
[1752532012891,6.1565,162.39,162.37,3.57]
[1752532013092,3.32,162.39,162.37,3.57]
[1752532013494,9.4764,162.4,162.37,3.57]
[1752532017194,6.1565,162.39,162.37,3.57]
[1752532017395,9.4765,162.39,162.37,3.57]
[1752532020395,5.13767027,162.44,162.38,3.34465538]
[1752532020601,5.13767027,162.44,162.41,3.64]
[1752532020602,3.32,162.44,162.41,3.64]
[1752532021097,209.32,162.48,162.43,3.64]
[1752532021400,3.32,162.48,162.45,3.64]
[1752532021803,3.32,162.48,162.46,3.64]
[1752532022103,3.32,162.5,162.47,3.64]
[1752532022993,9.4725,162.5,162.47,3.64]
[1752532023193,3.32,162.5,162.47,3.64]
[1752532023390,3.32,162.5,162.49,3.64]
[1752532024002,3.32,162.5,162.49,3.64]
[1752532025092,9.4723,162.5,162.49,3.64]
[1752532027101,9.4732,162.48,162.47,3.64]
[1752532028902,6.1532,162.48,162.47,3.64]
[1752532031301,6.1528,162.49,162.47,3.64]
[1752532031805,6.1524,162.5,162.47,3.64]
[1752532032207,206.0,162.51,162.48,3.34465538]
[1752532032407,212.1521,162.51,162.49,3.64]
[1752532032597,206.0,162.51,162.49,3.64]
[1752532036106,212.1521,162.51,162.49,3.64]
[1752532037009,215.4721,162.51,162.49,3.64]
[1752532038109,6.1523,162.5,162.49,3.64]
[1752532039409,215.4721,162.51,162.49,3.64]
[1752532039608,215.4721,162.51,162.5,3.64]
[1752532044513,212.1521,162.51,162.5,3.64]
[1752532044709,206.0,162.51,162.5,3.64]
[1752532045514,212.1519,162.51,162.5,3.64]
[1752532045813,215.4719,162.51,162.5,3.64]
[1752532048914,209.32,162.51,162.48,3.34465538]
[1752532049215,9.4724,162.5,162.49,3.57]
[1752532050215,206.0,162.51,162.46,0.29737291]
[1752532050515,3.32,162.5,162.48,3.57]
[1752532050707,9.4725,162.5,162.48,3.57]
[1752532051905,6.1527,162.49,162.46,6.45087291]
[1752532052114,3.32,162.48,162.47,3.57]
[1752532052613,9.4727,162.49,162.47,3.57]
[1752532056118,6.1527,162.49,162.47,3.57]
[1752532058416,9.4724,162.5,162.47,9.7234]
[1752532058616,9.4724,162.5,162.48,3.57]
[1752532059009,3.32,162.49,162.48,3.57]
[1752532059816,206.0,162.51,162.48,9.7228]
[1752532060019,206.0,162.51,162.49,3.57]
[1752532060220,209.32,162.51,162.49,3.57]
[1752532060418,6.1523,162.5,162.49,3.57]
[1752532062419,3.32,162.5,162.49,3.57]
[1752532063216,212.1521,162.51,162.49,3.57]
[1752532063418,215.4721,162.51,162.49,3.57]
[1752532065223,9.4723,162.5,162.49,3.57]
[1752532066320,215.472,162.51,162.49,3.57]
[1752532068630,6.1523,162.5,162.49,3.57]
[1752532071026,215.472,162.51,162.49,3.57]
[1752532071223,209.32,162.51,162.49,3.57]
[1752532071627,6.1523,162.5,162.49,3.57]
[1752532073030,6.1523,162.5,162.49,5.70253843]
[1752532073230,6.1523,162.5,162.49,2.13253843]
[1752532073530,6.1523,162.5,162.49,5.70253843]
[1752532076028,9.4723,162.5,162.49,5.70253843]
[1752532076627,6.1523,162.5,162.49,5.70253843]
[1752532076821,9.4723,162.5,162.49,5.70253843]
[1752532077330,6.1523,162.5,162.49,5.70253843]
[1752532078330,9.4723,162.5,162.49,5.70253843]
[1752532079933,9.4723,162.5,162.49,3.57]
[1752532083237,9.4723,162.5,162.49,5.702758]
[1752532083939,9.4723,162.5,162.49,3.57]
[1752532084540,6.1527,162.49,162.48,2.132758]
[1752532084743,2.132758,162.49,162.46,0.29737291]
[1752532084940,3.32,162.48,162.46,3.74737291]
[1752532085136,9.4734,162.47,162.46,0.29737291]
[1752532085339,2.13393926,162.47,162.42,2.13393926]
[1752532085641,6.1549,162.43,162.42,3.45]
[1752532085838,9.4749,162.43,162.42,3.45]
[1752532086041,9.4749,162.43,162.42,5.58393926]
[1752532086337,3.32,162.43,162.42,3.45]
[1752532086534,6.1547,162.44,162.43,3.45]
[1752532087138,9.4747,162.44,162.43,3.45]
[1752532091140,6.1547,162.44,162.43,3.45]
[1752532091742,6.1543,162.45,162.43,3.45]
[1752532091943,3.32,162.47,162.44,6.1545]
[1752532092135,209.32,162.48,162.45,3.45]
[1752532092538,6.1537,162.47,162.45,3.45]
[1752532094839,206.0,162.48,162.46,6.78523481]
[1752532095044,3.32,162.5,162.47,3.45]
[1752532095442,209.32,162.51,162.47,3.45]
[1752532096243,215.4723,162.51,162.49,3.45]
[1752532096442,209.32,162.51,162.49,3.45]
[1752532097047,5.12011287,162.53,162.49,3.45]
[1752532097246,216.18654529,162.55,162.49,3.45]
[1752532097247,3.32,162.52,162.49,3.45]
[1752532097448,3.32,162.53,162.49,3.45]
[1752532097847,6.1525,162.5,162.48,3.33523481]
[1752532098548,6.1525,162.5,162.49,3.45]
[1752532102649,6.1532,162.48,162.46,180.35523481]
[1752532103254,6.1532,162.48,162.47,3.45]
[1752532103650,9.4732,162.48,162.47,3.45]
[1752532104555,6.1528,162.49,162.47,3.45]
[1752532104754,3.32,162.51,162.47,3.45]
[1752532105055,3.32,162.5,162.47,3.45]
[1752532105354,9.4726,162.5,162.47,3.45]
[1752532106655,9.472,162.51,162.48,6.76523481]
[1752532106857,9.472,162.51,162.49,3.43]
[1752532107056,6.152,162.51,162.46,183.1734]
[1752532107252,9.4723,162.5,162.47,6.76523481]
[1752532107451,9.4723,162.5,162.48,3.43]
[1752532107758,3.32,162.5,162.48,3.43]
[1752532107948,3.32,162.51,162.48,3.43]
[1752532108656,9.472,162.51,162.48,3.43]
[1752532109558,3.32,162.5,162.48,3.43]
[1752532110461,3.32,162.52,162.48,3.43]
[1752532111060,9.4716,162.52,162.48,9.5829]
[1752532111261,9.4716,162.52,162.49,3.43]
[1752532112158,9.4716,162.52,162.49,12.91783481]
[1752532112363,209.32,162.53,162.5,3.43]
[1752532112962,215.4715,162.53,162.5,3.43]
[1752532113763,6.1515,162.52,162.5,3.43]
[1752532117361,9.4715,162.52,162.5,3.43]
[1752532119166,9.4715,162.52,162.5,2.13219413]
[1752532119468,9.4715,162.52,162.51,3.43]
[1752532121368,215.4713,162.53,162.51,3.43]
[1752532122064,9.4715,162.52,162.51,3.43]
[1752532123270,6.1515,162.52,162.51,3.43]
[1752532124068,9.4715,162.52,162.51,3.43]
[1752532128369,6.1522,162.51,162.49,2.13219413]
[1752532128567,9.4722,162.51,162.5,3.43]
[1752532129970,3.32,162.51,162.5,3.43]
[1752532130471,9.4719,162.51,162.5,3.43]
[1752532130872,209.32,162.53,162.5,3.43]
[1752532131073,209.32,162.53,162.5,5.56219413]
[1752532131274,3.32,162.52,162.51,3.43]
[1752532131467,9.4717,162.52,162.51,3.43]
[1752532135275,6.1517,162.52,162.51,3.43]
[1752532135671,215.4713,162.53,162.51,3.43]
[1752532135871,215.4713,162.53,162.51,5.56219413]
[1752532136068,215.4713,162.53,162.52,3.36]
[1752532138172,212.1513,162.53,162.52,3.36]
[1752532138380,215.4713,162.53,162.52,3.36]
[1752532138576,3.32,162.53,162.52,3.36]
[1752532138777,9.4709,162.54,162.52,5.49219413]
[1752532138971,9.4709,162.54,162.53,3.36]
[1752532140585,6.1509,162.54,162.53,5.49219413]
[1752532140791,8.44011287,162.55,162.54,3.36]
[1752532141287,3.32,162.55,162.54,3.36]
[1752532142180,3.32,162.55,162.51,5.49219413]
[1752532142388,5.45219413,162.55,162.51,5.49219413]
[1752532142580,3.32,162.54,162.52,3.36]
[1752532143390,6.151,162.54,162.51,2.13219413]
[1752532143591,3.32,162.53,162.51,2.13219413]
[1752532143987,9.4706,162.55,162.52,5.49219413]
[1752532144184,3.32,162.54,162.52,2.13219413]
[1752532144390,3.32,162.54,162.51,2.13219413]
[1752532144793,9.471,162.54,162.52,3.36]
[1752532144993,9.471,162.54,162.52,5.49219413]
[1752532145189,9.4707,162.55,162.53,3.36]
[1752532145393,209.32,162.56,162.54,3.36]
[1752532145592,3.32,162.56,162.54,3.36]
[1752532145790,8.44011287,162.57,162.55,5.49219413]
[1752532145992,5.12011287,162.57,162.56,5.49219413]
[1752532147492,217.26961287,162.58,162.56,2.13219413]
[1752532147694,217.26961287,162.58,162.57,5.49219413]
[1752532147996,217.31085709,162.58,162.57,5.49219413]
[1752532148596,212.1495,162.58,162.57,5.49219413]
[1752532149190,206.0,162.58,162.57,5.49219413]
[1752532149393,206.0,162.58,162.57,11.64179413]
[1752532150894,11.30955709,162.61,162.57,11.64179413]
[1752532151102,11.30955709,162.61,162.58,3.36]
[1752532151296,3.32,162.61,162.59,3.36]
[1752532151702,6.1488,162.6,162.59,3.36]
[1752532151904,9.4688,162.6,162.59,3.36]
[1752532153910,3.32,162.6,162.55,9.47780338]
[1752532154099,391.44886047,162.63,162.56,3.36]
[1752532154301,3.32,162.62,162.56,3.36]
[1752532154501,6.1491,162.59,162.56,3.36]
[1752532155103,9.4691,162.59,162.56,3.36]
[1752532159016,9.4694,162.58,162.56,3.36]
[1752532159210,3.32,162.58,162.56,3.36]
[1752532159413,3.32,162.57,162.56,3.36]
[1752532159615,9.4696,162.57,162.56,3.36]
[1752532160309,9.4693,162.58,162.56,3.36]
[1752532161509,6.1496,162.57,162.56,3.36]
[1752532163509,9.4694,162.58,162.56,3.36]
[1752532165417,3.32,162.57,162.56,3.36]
[1752532166021,9.4696,162.57,162.56,3.36]
[1752532166418,3.32,162.57,162.56,3.36]
[1752532169318,206.0,162.62,162.56,3.36]
[1752532169520,3.32,162.59,162.57,3.66]
[1752532170423,9.4693,162.58,162.57,3.66]
[1752532170619,3.32,162.58,162.55,3.66]
[1752532171112,9.4699,162.57,162.55,3.66]
[1752532171723,9.47,162.56,162.55,3.66]
[1752532177224,3.32,162.56,162.55,3.66]
[1752532177722,9.47,162.56,162.55,3.66]
[1752532180324,211.15747705,162.6,162.56,3.66]
[1752532180325,3.32,162.57,162.56,3.66]
[1752532180922,3.32,162.59,162.56,2.13146472]
[1752532181115,3.32,162.59,162.57,5.79146472]
[1752532181321,3.32,162.59,162.58,5.79146472]
[1752532181827,3.32,162.59,162.58,3.66]
[1752532182229,9.4689,162.59,162.58,3.66]
[1752532183830,8.47747705,162.61,162.58,3.66]
[1752532184029,8.47747705,162.62,162.6,3.66]
[1752532184228,5.15747705,162.62,162.6,2.13146472]
[1752532184433,11.30527705,162.62,162.61,5.79146472]
[1752532184934,11.30527705,162.62,162.61,3.66]
[1752532185126,5.15747705,162.62,162.51,12.3033]
[1752532185325,5.15747705,162.62,162.57,3.32844147]
[1752532185527,3.32,162.65,162.62,3.66]
[1752532185727,6.148,162.62,162.58,9.47744147]
[1752532185930,9.468,162.62,162.59,3.66]
[1752532187338,3.32,162.63,162.59,3.66]
[1752532187734,8.47747705,162.63,162.59,3.66]
[1752532188030,3.32,162.62,162.59,3.66]
[1752532188340,6.1481,162.61,162.59,3.66]
[1752532188532,9.4681,162.61,162.59,3.66]
[1752532189736,6.1485,162.6,162.59,3.66]
[1752532193030,9.4685,162.6,162.59,3.66]
[1752532196344,3.32,162.58,162.56,3.51]
[1752532197043,6.1496,162.57,162.56,3.51]
[1752532199746,6.1509,162.54,162.5,3.32835661]
[1752532200044,6.1509,162.54,162.51,6.1515]
[1752532200449,6.1509,162.54,162.52,3.51]
[1752532200748,6.1505,162.55,162.53,3.51]
[1752532200940,3.32,162.55,162.53,3.51]
[1752532201552,9.4706,162.55,162.53,3.51]
[1752532201740,3.32,162.55,162.53,3.51]
[1752532201940,3.32,162.57,162.53,3.51]
[1752532202549,3.32,162.57,162.5,9.48065661]
[1752532202750,3.32,162.55,162.51,3.51]
[1752532202946,3.32,162.55,162.49,177.06]
[1752532203145,3.32,162.55,162.52,3.51]
[1752532203349,9.4712,162.53,162.52,3.51]
[1752532204849,6.1512,162.53,162.52,3.51]
[1752532205349,3.32,162.57,162.53,9.6611]
[1752532205550,209.32,162.59,162.54,3.51]
[1752532205751,6.1501,162.56,162.54,3.51]
[1752532206050,3.32,162.58,162.54,3.51]
[1752532206245,206.0,162.59,162.54,6.83835661]
[1752532206447,206.0,162.59,162.55,3.51]
[1752532206654,212.1489,162.59,162.56,3.32835661]
[1752532206843,212.1489,162.59,162.57,3.51]
[1752532206844,206.0,162.59,162.57,3.51]
[1752532207655,214.49133716,162.62,162.57,3.51]
[1752532207846,6.1483,162.61,162.57,3.51]
[1752532208354,6.1483,162.61,162.58,6.149]
[1752532208552,6.1485,162.6,162.59,3.51]
[1752532209253,3.32,162.6,162.54,3.32835661]
[1752532209444,3.32,162.6,162.55,3.51]
[1752532209956,6.1496,162.58,162.55,9.6603]
[1752532210254,3.32,162.6,162.52,180.70835661]
[1752532210458,6.1493,162.58,162.57,3.51]
[1752532210753,9.4693,162.58,162.57,3.51]
[1752532214651,6.1493,162.58,162.57,3.51]
[1752532214851,206.0,162.62,162.57,3.51]
[1752532214852,5.17133716,162.62,162.57,3.51]
[1752532215158,5.17133716,162.63,162.59,3.32835661]
[1752532215353,8.49133716,162.63,162.6,3.51]
[1752532215655,6.1477,162.62,162.6,3.51]
[1752532215860,8.49133716,162.63,162.6,3.51]
[1752532216658,5.17133716,162.65,162.6,3.51]
[1752532216962,3.32,162.62,162.6,3.51]
[1752532217162,6.1481,162.61,162.6,3.51]
[1752532218465,9.4681,162.61,162.6,3.51]
[1752532219064,6.1492,162.59,162.56,9.47825661]
[1752532219264,6.1492,162.59,162.58,3.51]
[1752532222070,6.1492,162.59,162.58,3.51]
[1752532222474,9.4692,162.59,162.58,3.51]
[1752532222664,3.32835661,162.6,162.55,6.1503]
[1752532222869,3.32,162.59,162.56,3.51]
[1752532223074,6.1496,162.57,162.56,3.51]
[1752532224473,6.1494,162.58,162.56,3.51]